[Event "Karel Janecek Open 2025"]
[Site "Prague"]
[Date "2025.03.05"]
[Round "7.9"]
[White "Urazayev, Arystanbek"]
[Black "Prazak, Daniel"]
[Result "1-0"]
[Annotator "TA"]
[ECO "C67"]
[WhiteElo "2467"]
[BlackElo "2319"]
[PlyCount "91"]
[EventDate "2025.02.21"]
[EventType "swiss"]
[EventCountry "CZE"]
[SourceTitle "playchess.com"]
[Source "ChessBase"]
[SourceQuality "1"]
[TimeControl "40/5400+30:1800+30"]

{[%evp 9,91,6,22,0,0,0,0,-11,7,2,5,0,8,0,21,10,10,12,10,16,12,8,20,8,43,0,0,0,0,7,4,-30,-31,-53,-63,-63,-54,-72,-62,-62,-58,-98,-83,-109,-109,-97,0,0,0,0,0,-25,0,-47,0,0,7,0,46,0,0,0,156,168,162,156,160,160,205,200,462,418,647,631,491,500,1682,1535,2669,2195,2920,2749,2258,2037]} 1. e4 {[%emt 0:00:02]} e5 {[%emt 0:00:17]} 2. Nf3 {[%emt 0:00:11]} Nc6 {[%emt 0:00:28]} 3. Bb5 {[%emt 0:01:24]} Nf6 {[%emt 0:00:22][%cal Bg8f6,Bf6e4,Be4d6][%mdl 32]} 4. O-O {[%emt 0:01:37]} Nxe4 {[%emt 0:00:25]} 5. Re1 {[%emt 0:00:07]} Nd6 $1 {[%emt 0:00:51]} 6. a4 {[%emt 0:00:14] C67: Ruy Lopez: Berlin Defence: 4 0-0 Nxe4.} Be7 {[%emt 0:00:58]} 7. Nc3 {[%emt 0:00:36]} a6 {[%emt 0:01:15] is now more promising than 7...0-0.} 8. Bf1 {[%emt 0:00:28] The position is equal.} e4 {[%emt 0:00:22]} 9. Nxe4 {[%emt 0:00:05]} Nxe4 {[%emt 0:00:30]} 10. Rxe4 {[%emt 0:00:05]} d5 {[%emt 0:00:37]} 11. Re1 {[%emt 0:00:04]} d4 {[%emt 0:00:41]} 12. Bd3 {[%emt 0:00:04]} Be6 {[%emt 0:05:09]} 13. Be4 {[%emt 0:00:11]} Bd5 {[%emt 0:03:20]} 14. d3 {[%emt 0:04:52][%cal Oc1g5]} O-O {[%emt 0:04:45]} 15. Bf4 {[%emt 0:03:06][%cal Of4c7]} Bxe4 {[%emt 0:05:54]} 16. Rxe4 {[%emt 0:00:45]} f5 {[%emt 0:08:58]} 17. Re6 $146 {[%emt 0:13:35]} (17. Re1 Bf6 18. Qb1 Qd7 19. b4 b5 20. Qb3+ Qf7 21. Re6 Nd8 22. Rxf6 gxf6 23. Nxd4 Qxb3 24. cxb3 {½-½ Van Foreest,J (2678)-Fressinet,L (2631) Olympiad-44 Chennai 2022 (7.2)}) 17... g5 {[%emt 0:08:27]} 18. Rxe7 {[%emt 0:01:26]} Qxe7 {[%emt 0:03:09]} 19. Nxg5 {[%emt 0:07:58]} Rae8 {[%emt 0:01:19]} 20. Kf1 {[%emt 0:07:07] Inhibits Qe2+.} Ne5 {[%emt 0:02:31]} 21. Nf3 {[%emt 0:08:43]} Nxf3 {[%emt 0:04:04]} 22. Qxf3 {[%emt 0:00:08]} Rf7 {[%emt 0:03:46]} 23. g3 {[%emt 0:06:19]} Qb4 {[%emt 0:03:07]} 24. b3 {[%emt 0:06:07]} c6 {[%emt 0:03:59]} 25. a5 {[%emt 0:14:38]} Qc5 {[%emt 0:03:26]} 26. Ra4 {[%emt 0:01:52]} Qxc2 {[%emt 0:05:04]} 27. Rxd4 {[%emt 0:02:34] [#]} Re1+ {[%emt 0:06:50]} 28. Kg2 $1 $11 {[%emt 0:02:03]} (28. Kxe1 Qc3+ (28... Qxb3 $2 29. Kf1 $18) 29. Kf1 Qxd4) 28... Qe2 {[%emt 0:01:09]} 29. Qxe2 {[%emt 0:02:03]} Rxe2 {[%emt 0:00:30][%mdl 4096] Endgame KRR-KRB} 30. Kf3 {[%emt 0:02:51] Repels h5} Rb2 {[%emt 0:02:14]} 31. b4 {[%emt 0:00:20]} (31. Rd8+ $11 {was preferable.} Rf8 32. Rd7 Rxb3 33. Be5) 31... Re7 {[%emt 0:02:17]} (31... Kg7 $15) 32. Bg5 {[%emt 0:07:22]} Re6 {[%emt 0:02:37]} 33. h4 {[%emt 0:01:22]} Kg7 {[%emt 0:07:09]} (33... h5 $11) 34. h5 {[%emt 0:02:02]} (34. Rd7+ $14 Kg6 35. Be7 (35. Rxb7 c5 $11)) 34... h6 $1 {[%emt 0:00:36]} 35. Rd7+ {[%emt 0:03:12]} Kg8 $2 {[%emt 0:01:39]} ({Black should play} 35... Kf8 $11 36. Rd8+ Kf7 37. Rd7+ Ke8 38. Rd8+ Kf7) 36. Be7 $16 {[%emt 0:00:05]} Rxe7 {[%emt 0:01:02]} 37. Rxe7 {[%emt 0:00:05]} Rxb4 $18 {[%emt 0:00:09] KR-KR} 38. Re5 {[%emt 0:00:31] White is more active.} Rb5 {[%emt 0:03:56] [#]} 39. Kf4 {[%emt 0:00:12]} Rb4+ $2 {[%emt 0:00:07]} (39... Rb3 {keeps fighting.} 40. Re7 (40. Rxf5 Rxd3 41. Ke5 c5 $16) 40... Rxd3 41. Rxb7 (41. Kxf5 Rd5+ 42. Kf6 Rxh5 $16) 41... Rd5) 40. Kxf5 {[%emt 0:01:43] and Kg6 should not be overlooked} Rd4 {[%emt 0:00:30]} (40... Kf7 $142 41. f4 Rb1) 41. f4 {[%emt 0:04:36][%cal Bf2f4,Bf4g5,Bg5g6][%mdl 32] White is clearly winning.} Rxd3 {[%emt 0:01:04][%cal Og8f7]} 42. g4 {[%emt 0:02:36]} Kf7 {[%emt 0:00:32]} (42... Rd8 $142 43. g5 Kf8) 43. g5 {[%emt 0:00:48]} hxg5 {[%emt 0:00:06]} 44. fxg5 {[%emt 0:00:04]} Rf3+ {[%emt 0:00:18]} 45. Kg4 {[%emt 0:00:42]} Rb3 {[%emt 0:00:05]} 46. g6+ {[%emt 0:00:57] Weighted Error Value: White=0.12 (very precise) /Black=0.51  Mistake:       	White=2     	Black=6      Inaccurate:     	White=4     	Black=2      OK:         	White=15    	Black=14     Best:        	White=3     	---        Strong:       	White=1     	Black=1} 1-0

[Event "Karel Janecek Open 2025"]
[Site "Prague"]
[Date "2025.03.05"]
[Round "7.10"]
[White "Kraus, Tomas"]
[Black "Chittka, Julius"]
[Result "1/2-1/2"]
[Annotator "TA"]
[ECO "D32"]
[WhiteElo "2451"]
[BlackElo "2313"]
[PlyCount "80"]
[EventDate "2025.02.21"]
[EventType "swiss"]
[EventCountry "CZE"]
[SourceTitle "playchess.com"]
[Source "ChessBase"]
[SourceQuality "1"]
[TimeControl "40/5400+30:1800+30"]

{[%evp 22,80,27,29,28,23,47,11,27,19,21,6,7,3,14,6,19,21,46,22,70,41,77,73,105,103,103,102,139,75,75,69,70,70,88,79,85,76,74,0,87,61,56,53,62,64,85,-44,-51,-33,-54,-520,0,0,31,-635,0,0,0,0,0]} 1. c4 {[%emt 0:00:45]} e6 {[%emt 0:00:13]} 2. Nf3 {[%emt 0:00:37]} d5 {[%emt 0:00:12]} 3. e3 {[%emt 0:00:48]} Nf6 {[%emt 0:00:28]} 4. Nc3 {[%emt 0:00:44]} Bd6 {[%emt 0:01:45]} 5. b3 {[%emt 0:03:54]} c5 {[%emt 0:01:51]} 6. cxd5 {[%emt 0:04:48]} exd5 {[%emt 0:01:13]} 7. Bb2 {[%emt 0:02:58]} O-O {[%emt 0:02:38]} 8. d4 {[%emt 0:01:03]} Nc6 {[%emt 0:02:10]} 9. Be2 {[%emt 0:02:16]} cxd4 {[%emt 0:06:27]} 10. Nxd4 {[%emt 0:00:32]} Nxd4 $1 {[%emt 0:00:57] 10...Nxd4 is better than 10...Re8.} 11. Qxd4 {[%emt 0:00:44]} Re8 {[%emt 0:00:24]} 12. O-O {[%emt 0:07:54]} Be5 {[%emt 0:02:33] D32: Tarrasch Defence: Sidelines and lines without g3.} 13. Qd2 {[%emt 0:23:50]} Bg4 {[%emt 0:06:08]} 14. Bb5 {[%emt 0:19:21]} Bd7 {[%emt 0:15:15]} 15. Bxd7 {[%emt 0:01:44]} Qxd7 {[%emt 0:02:05]} 16. Rad1 {[%emt 0:02:27]} Rad8 $146 {[%emt 0:06:33]} ({Predecessor:} 16... Rac8 17. Na4 Qf5 18. Bxe5 Qxe5 19. Qd4 Qxd4 20. exd4 Rc2 21. a3 h5 22. h3 b6 {½-½ Van der Sterren,P (2560)-Van der Wiel,J (2570) Hoogovens op 1995 (12)}) 17. Ne2 {[%emt 0:00:29]} Ne4 {[%emt 0:03:34]} 18. Qc2 {[%emt 0:00:14]} Rc8 {[%emt 0:07:20]} (18... f6 {simplifies} 19. Bd4 Qd6 20. Bxe5 fxe5 21. Rc1 Qb6) 19. Qb1 {[%emt 0:00:04]} Qd6 {[%emt 0:09:20]} 20. h3 {[%emt 0:02:39]} Qf6 {[%emt 0:04:29]} (20... Bh2+ $11 {deserves consideration.} 21. Kh1 Be5) 21. Bd4 {[%emt 0:02:38]} a5 {[%emt 0:11:51] [#]} 22. Nf4 $1 {[%emt 0:00:53]} Rcd8 {[%emt 0:03:20] [#]} (22... Qc6 23. Bxe5) 23. Nxd5 $1 {[%emt 0:04:09][%mdl 512]} Rxd5 {[%emt 0:02:54]} 24. Qxe4 {[%emt 0:00:03]} Qd8 {[%emt 0:05:08][%cal Oe5h2] And now ...Bh2+! would win.} 25. Qg4 {[%emt 0:04:49]} (25. Bb6 $142 $1 Bh2+ 26. Kh1 (26. Kxh2 Qd6+ 27. Qf4 Rxd1 $15) 26... Rxd1 27. Qxe8+ Qxe8 28. Rxd1) 25... Bxd4 $16 {[%emt 0:02:00]} 26. Rxd4 {[%emt 0:00:12]} Rxd4 {[%emt 0:00:16]} 27. exd4 {[%emt 0:00:15][%mdl 4096] Endgame KQR-KQR. White is a pawn up.} Qd5 {[%emt 0:00:18]} 28. Rc1 {[%emt 0:00:58]} h5 {[%emt 0:00:56]} 29. Qf4 {[%emt 0:00:44]} b6 {[%emt 0:00:24] Prevents Rc5.} 30. Rc7 {[%emt 0:03:31]} (30. Rc3 $16) 30... Re1+ {[%emt 0:01:15]} ({Better is} 30... Re4 $11 31. Rc8+ Kh7) 31. Kh2 $14 {[%emt 0:00:03]} Re4 {[%emt 0:00:11]} 32. Rc8+ {[%emt 0:01:40]} Kh7 {[%emt 0:00:05]} 33. Qb8 {[%emt 0:00:10] White is more active.} Rxd4 {[%emt 0:01:25]} 34. Qxb6 {[%emt 0:02:41]} (34. Rh8+ $16 Kg6 35. Qxb6+ f6 36. Qb8) 34... Qe5+ $15 {[%emt 0:00:45]} 35. g3 {[%emt 0:00:00]} h4 $36 {[%emt 0:00:26][%mdl 3072] Black has compensation. Black fights for an advantage.} 36. Rc2 $2 {[%emt 0:01:23][%mdl 8192] [#]} (36. Rc3 $15) 36... Qe4 $2 {[%emt 0:00:40]} (36... Rd3 $1 $19 {[%cal Rh4g3]} 37. Qc7 hxg3+ 38. fxg3 Rd2+ 39. Rxd2 Qxc7) 37. Qc5 $11 {[%emt 0:02:38]} g6 {[%emt 0:00:53] Against Qh5+} 38. Qc7 $2 {[%emt 0:01:03][%mdl 8192] [#]} (38. Rc4 $14 hxg3+ 39. Kxg3 Rd3+ 40. Kh2) 38... Qd5 $2 {[%emt 0:00:33]} (38... Qf3 $1 $19 {( -> ...Rd1)} 39. Qc3 Rd3) 39. Rc4 {[%emt 0:03:44] Threatens to win with Rxd4.} hxg3+ {[%emt 0:00:24]} 40. Qxg3 {[%emt 0:00:32]} Rxc4 {[%emt 0:00:38] Weighted Error Value: White=0.62/Black=0.53  Loses game:     	White=2     	---        Missed win:     	---       	Black=2      Mistake:       	White=3     	Black=2      Inaccurate:     	White=2     	Black=4      OK:         	White=8     	Black=6      Best:        	White=4     	Black=3      Brilliant:      	White=1     	---} 1/2-1/2

[Event "Karel Janecek Open 2025"]
[Site "Prague"]
[Date "2025.03.05"]
[Round "7.11"]
[White "Winter, Ondrej"]
[Black "Rubes, Jan"]
[Result "0-1"]
[Annotator "ChessBase"]
[ECO "C54"]
[WhiteElo "2319"]
[BlackElo "2444"]
[PlyCount "74"]
[EventDate "2025.02.21"]
[EventType "swiss"]
[EventCountry "CZE"]
[SourceTitle "playchess.com"]
[Source "ChessBase"]
[SourceQuality "1"]
[TimeControl "40/5400+30:1800+30"]

1. e4 {[%emt 0:00:02]} e5 {[%emt 0:00:08]} 2. Nf3 {[%emt 0:00:05]} Nc6 {[%emt 0:00:03]} 3. Bc4 {[%emt 0:00:09]} Nf6 {[%emt 0:00:07]} 4. d3 {[%emt 0:00:08]} Bc5 {[%emt 0:00:21]} 5. c3 {[%emt 0:00:05]} d6 {[%emt 0:00:05]} 6. O-O {[%emt 0:00:54]} a5 {[%emt 0:00:13]} 7. a4 {[%emt 0:00:55]} Ba7 {[%emt 0:00:43]} 8. Nbd2 {[%emt 0:03:22]} O-O {[%emt 0:00:26]} 9. h3 {[%emt 0:00:48]} Be6 {[%emt 0:00:09]} 10. Bxe6 {[%emt 0:09:30]} fxe6 {[%emt 0:00:05]} 11. Nc4 {[%emt 0:00:15]} Qe8 {[%emt 0:17:15]} 12. Be3 {[%emt 0:10:00]} Nh5 {[%emt 0:04:35]} 13. d4 {[%emt 0:19:40]} exd4 {[%emt 0:04:08]} 14. Nxd4 {[%emt 0:03:42]} Bxd4 {[%emt 0:08:18]} 15. cxd4 {[%emt 0:00:09]} d5 {[%emt 0:10:47]} 16. Ne5 {[%emt 0:13:41]} Nf6 {[%emt 0:00:24]} 17. Nxc6 {[%emt 0:05:24]} Qxc6 {[%emt 0:00:13]} 18. e5 {[%emt 0:00:36]} Nd7 {[%emt 0:02:00]} 19. Rc1 {[%emt 0:01:56]} Qb6 {[%emt 0:00:14]} 20. b3 {[%emt 0:01:47]} Rf7 {[%emt 0:09:53]} 21. Qd3 {[%emt 0:01:44]} c6 {[%emt 0:11:35]} 22. f4 {[%emt 0:00:57]} Qa6 {[%emt 0:00:14]} 23. Qc2 {[%emt 0:00:37]} Raf8 {[%emt 0:00:10]} 24. g4 {[%emt 0:02:27]} c5 {[%emt 0:04:31]} 25. f5 {[%emt 0:17:52]} cxd4 {[%emt 0:00:27]} 26. Bxd4 {[%emt 0:00:08]} exf5 {[%emt 0:00:17]} 27. Rxf5 {[%emt 0:02:24]} Rxf5 {[%emt 0:00:15]} 28. gxf5 {[%emt 0:00:06]} Qh6 {[%emt 0:00:03]} 29. e6 {[%emt 0:02:54]} Nf6 {[%emt 0:11:19]} 30. Bxf6 {[%emt 0:01:14]} Qxf6 {[%emt 0:00:04]} 31. Re1 {[%emt 0:00:33]} Qh4 {[%emt 0:01:34]} 32. Re2 {[%emt 0:01:49]} Qxh3 {[%emt 0:01:52]} 33. e7 {[%emt 0:00:28]} Re8 {[%emt 0:00:03]} 34. Qc5 {[%emt 0:00:37]} Qxf5 {[%emt 0:02:22]} 35. Qe3 {[%emt 0:00:29]} h6 {[%emt 0:03:07]} 36. Qb6 {[%emt 0:00:09]} Qg5+ {[%emt 0:01:59]} 37. Kh1 {[%emt 0:00:51]} Qh5+ {[%emt 0:00:20]} 0-1

[Event "Karel Janecek Open 2025"]
[Site "Prague"]
[Date "2025.03.05"]
[Round "7.12"]
[White "Druska, Juraj"]
[Black "Simek, Petr"]
[Result "1-0"]
[Annotator "ChessBase"]
[ECO "D24"]
[WhiteElo "2442"]
[BlackElo "2322"]
[PlyCount "69"]
[EventDate "2025.02.21"]
[EventType "swiss"]
[EventCountry "CZE"]
[SourceTitle "playchess.com"]
[Source "ChessBase"]
[SourceQuality "1"]
[TimeControl "40/5400+30:1800+30"]

1. d4 {[%emt 0:00:03]} Nf6 {[%emt 0:01:07]} 2. c4 {[%emt 0:00:13]} e6 {[%emt 0:00:07]} 3. Nf3 {[%emt 0:00:13]} d5 {[%emt 0:00:07]} 4. Nc3 {[%emt 0:00:11]} dxc4 {[%emt 0:00:12]} 5. e4 {[%emt 0:00:09]} Bb4 {[%emt 0:00:06]} 6. Bxc4 {[%emt 0:00:10]} Nxe4 {[%emt 0:00:06]} 7. O-O {[%emt 0:00:07]} Nf6 {[%emt 0:00:08]} 8. Qa4+ {[%emt 0:04:42]} Nc6 {[%emt 0:00:05]} 9. Ne5 {[%emt 0:00:09]} Bd6 {[%emt 0:00:06]} 10. Nxc6 {[%emt 0:01:19]} bxc6 {[%emt 0:00:04]} 11. Qxc6+ {[%emt 0:00:16]} Bd7 {[%emt 0:00:04]} 12. Qf3 {[%emt 0:00:11]} O-O {[%emt 0:08:12]} 13. Bg5 {[%emt 0:01:04]} Rb8 {[%emt 0:08:44]} 14. b3 {[%emt 0:00:41]} h6 {[%emt 0:07:25]} 15. Bh4 {[%emt 0:00:36]} Be7 {[%emt 0:00:08]} 16. Rad1 {[%emt 0:21:47]} Nd5 {[%emt 0:12:39]} 17. Bxe7 {[%emt 0:06:37]} Nxe7 {[%emt 0:00:05]} 18. d5 {[%emt 0:00:09]} exd5 {[%emt 0:00:21]} 19. Nxd5 {[%emt 0:00:15]} Nxd5 {[%emt 0:00:22]} 20. Rxd5 {[%emt 0:00:26]} Qc8 {[%emt 0:00:23]} 21. Ra5 {[%emt 0:03:52]} Qb7 {[%emt 0:06:50]} 22. Qe3 {[%emt 0:09:37]} Ra8 {[%emt 0:00:15]} 23. Rc1 {[%emt 0:09:24]} Qb6 {[%emt 0:05:28]} 24. Rc5 {[%emt 0:04:03]} Rae8 {[%emt 0:06:55]} 25. Qc3 {[%emt 0:01:34]} c6 {[%emt 0:05:36]} 26. b4 {[%emt 0:07:00]} Re7 {[%emt 0:06:28]} 27. Bf1 {[%emt 0:02:58]} Rd8 {[%emt 0:03:02]} 28. g3 {[%emt 0:01:36]} Be8 {[%emt 0:00:32]} 29. a3 {[%emt 0:00:29]} Rd6 {[%emt 0:00:22]} 30. Bg2 {[%emt 0:00:58]} Ree6 {[%emt 0:04:32]} 31. h4 {[%emt 0:03:48]} Qd8 {[%emt 0:01:02]} 32. Bf1 {[%emt 0:01:10]} Kh7 {[%emt 0:23:09]} 33. Ra5 {[%emt 0:03:42]} Rf6 {[%emt 0:01:33]} 34. Qe3 {[%emt 0:04:22]} Rd2 {[%emt 0:00:31]} 35. Re5 {[%emt 0:01:02]} 1-0

[Event "Karel Janecek Open 2025"]
[Site "Prague"]
[Date "2025.03.05"]
[Round "7.13"]
[White "Klek, Hanna Marie"]
[Black "Gkoumas, Georgios"]
[Result "0-1"]
[Annotator "ChessBase"]
[ECO "C13"]
[WhiteElo "2289"]
[BlackElo "2438"]
[PlyCount "98"]
[EventDate "2025.02.21"]
[EventType "swiss"]
[EventCountry "CZE"]
[SourceTitle "playchess.com"]
[Source "ChessBase"]
[SourceQuality "1"]
[TimeControl "40/5400+30:1800+30"]

1. e4 {[%emt 0:00:04]} e6 {[%emt 0:12:20]} 2. d4 {[%emt 0:00:26]} d5 {[%emt 0:00:07]} 3. Nc3 {[%emt 0:00:29]} Nf6 {[%emt 0:00:07]} 4. Bg5 {[%emt 0:00:14]} dxe4 {[%emt 0:00:13]} 5. Bxf6 {[%emt 0:01:27]} gxf6 {[%emt 0:01:37]} 6. Nxe4 {[%emt 0:00:09]} f5 {[%emt 0:01:28]} 7. Nc3 {[%emt 0:11:10]} Bg7 {[%emt 0:04:31]} 8. Nf3 {[%emt 0:00:11]} c5 {[%emt 0:08:19]} 9. dxc5 {[%emt 0:21:22]} Bxc3+ {[%emt 0:16:08]} 10. bxc3 {[%emt 0:00:05]} Qxd1+ {[%emt 0:00:05]} 11. Rxd1 {[%emt 0:01:01]} Ke7 {[%emt 0:00:07]} 12. Nd4 {[%emt 0:09:20]} Bd7 {[%emt 0:01:38]} 13. Rb1 {[%emt 0:02:10]} Bc6 {[%emt 0:08:10]} 14. Nxc6+ {[%emt 0:10:25]} bxc6 {[%emt 0:00:13]} 15. Rb7+ {[%emt 0:09:29]} Nd7 {[%emt 0:00:20]} 16. Ba6 {[%emt 0:04:53]} Rhb8 {[%emt 0:02:09]} 17. Kd2 {[%emt 0:06:07]} Rxb7 {[%emt 0:15:18]} 18. Bxb7 {[%emt 0:00:06]} Rd8 {[%emt 0:00:02]} 19. Ke3 {[%emt 0:01:37]} Ne5 {[%emt 0:01:32]} 20. Rb1 {[%emt 0:03:45]} Rd5 {[%emt 0:04:44]} 21. Rb4 {[%emt 0:04:27]} Ng4+ {[%emt 0:02:35]} 22. Ke2 {[%emt 0:00:47]} Rxc5 {[%emt 0:00:03]} 23. h3 {[%emt 0:01:11]} Ne5 {[%emt 0:01:36]} 24. Ra4 {[%emt 0:02:01]} a5 {[%emt 0:01:25]} 25. Kd2 {[%emt 0:02:59]} Nc4+ {[%emt 0:00:22]} 26. Kc1 {[%emt 0:00:15]} Nd6 {[%emt 0:01:14]} 27. Ba6 {[%emt 0:00:45]} Ne4 {[%emt 0:00:05]} 28. f3 {[%emt 0:00:38]} Nxc3 {[%emt 0:00:17]} 29. Rh4 {[%emt 0:00:22]} Nxa2+ {[%emt 0:00:25]} 30. Kb2 {[%emt 0:01:42]} Nb4 {[%emt 0:00:09]} 31. Bc4 {[%emt 0:00:21]} Nd5 {[%emt 0:04:05]} 32. Bd3 {[%emt 0:03:31]} Nf6 {[%emt 0:02:04]} 33. Rh6 {[%emt 0:00:43]} f4 {[%emt 0:01:15]} 34. h4 {[%emt 0:00:50]} Rd5 {[%emt 0:05:55]} 35. Kb3 {[%emt 0:00:44]} Rd8 {[%emt 0:00:16]} 36. Ka4 {[%emt 0:00:35]} Ra8 {[%emt 0:01:07]} 37. Bf1 {[%emt 0:00:52]} Ra7 {[%emt 0:02:45]} 38. Bd3 {[%emt 0:00:11]} Ra8 {[%emt 0:00:08]} 39. Bf1 {[%emt 0:00:08]} e5 {[%emt 0:02:32]} 40. Bd3 {[%emt 0:01:27]} Rg8 {[%emt 0:01:53]} 41. Bf1 {[%emt 0:10:11]} Rg6 {[%emt 0:06:40]} 42. Rxg6 {[%emt 0:00:05]} fxg6 {[%emt 0:00:04]} 43. c4 {[%emt 0:01:41]} Kd6 {[%emt 0:00:44]} 44. Kxa5 {[%emt 0:00:07]} Kc5 {[%emt 0:00:04]} 45. Ka6 {[%emt 0:00:54]} Kd4 {[%emt 0:01:55]} 46. Kb6 {[%emt 0:00:16]} c5 {[%emt 0:00:04]} 47. Be2 {[%emt 0:03:12]} Nh5 {[%emt 0:00:12]} 48. Kb5 {[%emt 0:00:25]} Ng3 {[%emt 0:00:15]} 49. Bd1 {[%emt 0:00:37]} Nf5 {[%emt 0:01:45]} 0-1

[Event "Karel Janecek Open 2025"]
[Site "Prague"]
[Date "2025.03.05"]
[Round "7.14"]
[White "Atoyan, Alberto"]
[Black "Sofronie, Iulian"]
[Result "0-1"]
[Annotator "ChessBase"]
[ECO "C55"]
[WhiteElo "2235"]
[BlackElo "2380"]
[PlyCount "82"]
[EventDate "2025.02.21"]
[EventType "swiss"]
[EventCountry "CZE"]
[SourceTitle "playchess.com"]
[Source "ChessBase"]
[SourceQuality "1"]
[TimeControl "40/5400+30:1800+30"]

1. e4 {[%emt 0:00:05]} e5 {[%emt 0:00:05]} 2. Nf3 {[%emt 0:00:09]} Nc6 {[%emt 0:00:05]} 3. Bc4 {[%emt 0:00:09]} Nf6 {[%emt 0:00:06]} 4. d3 {[%emt 0:00:09]} h6 {[%emt 0:00:06]} 5. O-O {[%emt 0:00:09]} d6 {[%emt 0:00:04]} 6. a4 {[%emt 0:00:09]} g5 {[%emt 0:00:36]} 7. c3 {[%emt 0:05:30]} Bg7 {[%emt 0:00:56]} 8. Re1 {[%emt 0:16:53]} O-O {[%emt 0:00:45]} 9. d4 {[%emt 0:09:24]} Nd7 {[%emt 0:20:50]} 10. d5 {[%emt 0:15:16]} Ne7 {[%emt 0:01:20]} 11. Nbd2 {[%emt 0:06:39]} Ng6 {[%emt 0:01:13]} 12. h3 {[%emt 0:01:00]} Nf4 {[%emt 0:08:35]} 13. Nf1 {[%emt 0:01:39]} Nf6 {[%emt 0:03:11]} 14. Ng3 {[%emt 0:03:11]} g4 {[%emt 0:02:43]} 15. hxg4 {[%emt 0:01:30]} Bxg4 {[%emt 0:00:11]} 16. Bxf4 {[%emt 0:03:22]} exf4 {[%emt 0:00:12]} 17. Nf5 {[%emt 0:00:33]} Nd7 {[%emt 0:02:32]} 18. Nxg7 {[%emt 0:03:13]} Kxg7 {[%emt 0:00:06]} 19. Qd4+ {[%emt 0:10:15]} Kg8 {[%emt 0:01:21]} 20. Nd2 {[%emt 0:08:22]} Ne5 {[%emt 0:00:23]} 21. f3 {[%emt 0:00:27]} Bh5 {[%emt 0:03:34]} 22. Kf2 {[%emt 0:00:42]} Kh7 {[%emt 0:02:18]} 23. Rh1 {[%emt 0:00:59]} Qg5 {[%emt 0:00:15]} 24. Rh3 {[%emt 0:00:53]} Rg8 {[%emt 0:01:33]} 25. Rah1 {[%emt 0:04:20]} Qxg2+ {[%emt 0:06:26]} 26. Ke1 {[%emt 0:00:02]} Bxf3 {[%emt 0:00:30]} 27. R1h2 {[%emt 0:02:54]} Qg1+ {[%emt 0:02:52]} 28. Qxg1 {[%emt 0:01:56]} Rxg1+ {[%emt 0:00:07]} 29. Kf2 {[%emt 0:00:05]} Rg3 {[%emt 0:00:11]} 30. Rxh6+ {[%emt 0:02:58]} Kg7 {[%emt 0:00:45]} 31. Rh7+ {[%emt 0:00:04]} Kf6 {[%emt 0:00:22]} 32. R2h6+ {[%emt 0:02:04]} Kg5 {[%emt 0:00:16]} 33. Nxf3+ {[%emt 0:01:16]} Rxf3+ {[%emt 0:00:04]} 34. Ke2 {[%emt 0:00:29]} Re3+ {[%emt 0:00:10]} 35. Kf1 {[%emt 0:00:04]} Nxc4 {[%emt 0:00:39]} 36. Rh5+ {[%emt 0:00:04]} Kg4 {[%emt 0:00:06]} 37. Kf2 {[%emt 0:00:18]} Rxe4 {[%emt 0:02:11]} 38. Rh4+ {[%emt 0:00:09]} Kg5 {[%emt 0:00:14]} 39. R7h6 {[%emt 0:00:59]} Rg8 {[%emt 0:01:30]} 40. R4h5+ {[%emt 0:00:50]} Kg4 {[%emt 0:00:06]} 41. Rh4+ {[%emt 0:30:05]} Kf5 {[%emt 0:30:07]} 0-1